fUST/lending_fUST_20241205
["ID","MTS","AMOUNT","RATE_DAILY","PERIOD"]
[344356103,1733368236415,-501.54333067,0.00023937,2]
[344356105,1733368236426,-500.0,0.00023937,2]
[344356107,1733368236435,-500.0,0.00023937,2]
[344356109,1733368236445,-500.0,0.00023937,2]
[344356111,1733368236455,-500.0,0.00023937,2]
[344356113,1733368236465,-500.0,0.00023937,2]
[344356115,1733368236475,-620.93158273,0.00023937,2]
[344356116,1733368236485,-348.83662953,0.00023937,2]
[344356118,1733368236495,-500.0,0.00023937,2]
[344356120,1733368236505,-500.0,0.00023937,2]
[344356122,1733368236515,-506.96625525,0.00023937,2]
[344356124,1733368236525,-500.0,0.00023937,2]
[344356126,1733368236535,-381.3822211,0.00023937,2]
[344356128,1733368236544,-525.75307021,0.00023937,2]
[344356130,1733368236554,-500.0,0.00023937,2]
[344356132,1733368236563,-503.02712429,0.00023937,2]
[344356134,1733368236572,-536.97774291,0.00023937,2]
[344356135,1733368236582,-513.02107,0.00023937,2]
[344356137,1733368236591,-500.0,0.00023937,2]
[344356139,1733368236607,-500.0,0.00023937,2]
[344356140,1733368236616,-500.0,0.00023937,2]
[344356141,1733368236625,-537.66226774,0.00023937,2]
[344356142,1733368236635,-500.0,0.00023937,2]
[344356143,1733368236644,-509.52448693,0.00023937,2]
[344356144,1733368236654,-516.79460991,0.00023937,2]
[344356145,1733368236664,-500.0,0.00023937,2]
[344356146,1733368236673,-502.7744345,0.00023937,2]
[344356147,1733368236683,-500.0,0.00023937,2]
[344356148,1733368236693,-503.35563996,0.00023937,2]
[344356149,1733368236703,-507.02384289,0.00023937,2]
[344356150,1733368236713,-503.89331945,0.00023937,2]
[344356151,1733368236723,-502.80309216,0.00023937,2]
[344356152,1733368236733,-501.83489639,0.00023937,2]
[344356154,1733368236743,-500.0,0.00023937,2]
[344356156,1733368236753,-21026.6799971,0.00023938,2]
[344356158,1733368236763,-266.65371498,0.00023973,2]
[344356160,1733368236772,-516.73571809,0.00023973,2]
[344356162,1733368236781,-500.0,0.00023973,2]
[344356164,1733368236792,-161.22203166,0.00023973,2]
[344356166,1733368236801,-500.0,0.00023973,2]
[344356168,1733368236811,-500.0,0.00023973,2]
[344356170,1733368236821,-441.76456335,0.00023973,2]
[344356172,1733368236833,-181.925254,0.00024111,2]
[344356174,1733368236843,-500.0,0.00024159,2]
[344356176,1733368236861,-500.0,0.00024159,2]
[344356178,1733368236872,-500.0,0.00024159,2]
[344356180,1733368236883,-182.0,0.00024164,2]
[344356182,1733368236893,-508.54254952,0.0002421,2]
[344356184,1733368236903,-506.62471183,0.0002421,2]
[344356186,1733368236913,-500.0,0.0002421,2]
[344356188,1733368236923,-580.12909467,0.0002421,2]
[344356190,1733368236933,-500.0,0.0002421,2]
[344356192,1733368236943,-500.0,0.0002421,2]
[344356194,1733368236953,-514.29863071,0.0002421,2]
[344356196,1733368236962,-510.20752669,0.0002421,2]
[344356198,1733368236971,-500.0,0.0002421,2]
[344356200,1733368236980,-500.0,0.0002421,2]
[344356202,1733368236990,-518.03739658,0.0002421,2]
[344356204,1733368237000,-500.0,0.0002421,2]
[344356206,1733368237009,-186.73,0.0002421,2]
[344356208,1733368237018,-500.0,0.0002421,2]
[344356210,1733368237027,-500.0,0.0002421,2]
[344356212,1733368237037,-500.0,0.0002421,2]
[344356214,1733368237046,-501.57244681,0.0002421,2]
[344356216,1733368237055,-510.0170503,0.00024211,2]
[344356218,1733368237065,-500.0,0.00024211,2]
[344356220,1733368237074,-500.0,0.00024211,2]
[344356222,1733368237084,-500.0,0.00024211,2]
[344356224,1733368237094,-500.0,0.00024211,2]
[344356226,1733368237108,-264.55613453,0.00024211,2]
[344356228,1733368237117,-500.0,0.00024211,2]
[344356230,1733368237128,-168.07127385,0.00024211,2]
[344356232,1733368237138,-387.54793041,0.00024211,2]
[344356234,1733368237147,-522.53155177,0.00024211,2]
[344356236,1733368237156,-541.59848115,0.00024211,2]
[344356238,1733368237166,-500.0,0.00024211,2]
[344356240,1733368237175,-504.68013022,0.00024211,2]
[344356242,1733368237185,-505.17319599,0.00024211,2]
[344356244,1733368237195,-1002.98586278,0.00024211,5]
[344356245,1733368237204,-508.98322342,0.00024211,2]
[344356247,1733368237214,-518.72693231,0.00024211,2]
[344356248,1733368237223,-512.79145996,0.00024211,10]
[344356250,1733368237232,-509.91125892,0.00024211,2]
[344356252,1733368237242,-507.39372509,0.00024211,2]
[344356254,1733368237251,-502.91414433,0.00024211,2]
[344356256,1733368237261,-500.0,0.00024211,2]
[344356258,1733368237270,-511.97960459,0.00024211,2]
[344356260,1733368237280,-200.0,0.00024211,2]
[344356262,1733368237290,-500.0,0.00024211,2]
[344356264,1733368237299,-500.0,0.00024211,2]
[344356266,1733368237309,-500.0,0.00024211,2]
[344356268,1733368237319,-500.0,0.00024211,2]
[344356270,1733368237328,-479.24335048,0.00024211,2]
[344356272,1733368237338,-500.0,0.00024211,2]
[344356274,1733368237352,-507.70538281,0.00024211,2]
[344356276,1733368237362,-500.0,0.00024211,2]
[344356278,1733368237372,-500.0,0.00024211,2]
[344356280,1733368237382,-527.46063058,0.00024211,2]
[344356282,1733368237392,-525.04486405,0.00024211,2]
[344356284,1733368237405,-500.0,0.00024211,2]
[344356286,1733368237415,-500.0,0.00024211,2]
[344356288,1733368237424,-377.28387781,0.00024211,2]
[344356290,1733368237434,-512.92998947,0.00024211,2]
[344356292,1733368237445,-500.0,0.00024211,2]
[344356294,1733368237454,-522.8318548,0.00024211,2]
[344356296,1733368237464,-500.0,0.00024211,2]
[344356298,1733368237474,-500.0,0.00024211,2]
[344356300,1733368237485,-511.80984284,0.00024211,2]
[344356302,1733368237496,-505.09759221,0.00024211,2]
[344356304,1733368237507,-500.0,0.00024211,2]
[344356306,1733368237516,-294.77512106,0.00024211,2]
[344356308,1733368237526,-500.0,0.00024211,2]
[344356310,1733368237535,-500.0,0.00024211,2]
[344356312,1733368237545,-508.11024005,0.00024211,2]
[344356314,1733368237555,-500.0,0.00024211,2]
[344356316,1733368237564,-506.50334208,0.00024211,2]
[344356318,1733368237575,-500.0,0.00024211,2]
[344356320,1733368237585,-513.60676981,0.00024211,2]
[344356322,1733368237595,-500.0,0.00024211,2]
[344356324,1733368237610,-502.7240399,0.00024211,2]
[344356326,1733368237620,-522.37737271,0.00024211,2]
[344356328,1733368237630,-500.0,0.00024211,2]
[344356330,1733368237640,-500.0,0.00024211,2]
[344356333,1733368237650,-500.0,0.00024211,2]
[344356334,1733368237659,-500.0,0.00024211,2]
[344356336,1733368237669,-508.60543267,0.00024211,2]
[344356338,1733368237678,-323.37667224,0.00024211,2]
[344356340,1733368237687,-508.03175548,0.00024211,2]
[344356342,1733368237697,-684.57,0.00024211,2]
[344356344,1733368237705,-500.0,0.00024211,2]
[344356346,1733368237715,-500.0,0.00024211,2]
[344356348,1733368237724,-500.0,0.00024211,2]
[344356350,1733368237734,-500.0,0.00024211,2]
[344356352,1733368237744,-500.0,0.00024211,2]
[344356354,1733368237754,-500.0,0.00024211,2]
[344356356,1733368237764,-500.0,0.00024211,2]
[344356358,1733368237774,-500.0,0.00024211,2]
[344356359,1733368237783,-502.34854705,0.00024211,2]
[344356361,1733368237793,-230.20780483,0.00024211,2]
[344356363,1733368237803,-499.25668606,0.00024211,2]
[344356365,1733368237812,-507.76775343,0.00024211,2]
[344356367,1733368237821,-500.0,0.00024211,2]
[344356369,1733368237831,-418.00557517,0.00024211,2]
[344356371,1733368237840,-500.0,0.00024211,2]
[344356373,1733368237855,-500.0,0.00024211,2]
[344356375,1733368237865,-428.17232513,0.00024211,2]
[344356377,1733368237874,-500.0,0.00024211,2]
[344356379,1733368237883,-500.0,0.00024211,2]
[344356389,1733368237976,-484.17034977,0.00024211,2]
[344356391,1733368237987,-500.0,0.00024211,2]
[344356393,1733368237997,-493.86560577,0.00024211,2]
[344356395,1733368238007,-500.0,0.00024211,2]
[344356397,1733368238016,-500.0,0.00024211,2]
[344356399,1733368238026,-500.0,0.00024211,2]
[344356401,1733368238035,-500.0,0.00024211,2]
[344356403,1733368238045,-507.15875906,0.00024211,2]
[344356405,1733368238054,-502.05436069,0.00024211,2]
[344356407,1733368238064,-505.25033253,0.00024211,2]
[344356409,1733368238073,-500.0,0.00024211,2]
[344356411,1733368238083,-507.76827646,0.00024211,2]
[344356413,1733368238093,-504.52241273,0.00024211,2]
[344356415,1733368238105,-552.13305255,0.00024211,2]
[344356417,1733368238114,-500.0,0.00024211,2]
[344356419,1733368238123,-555.58339447,0.00024211,2]
[344356421,1733368238132,-500.0,0.00024211,2]
[344356423,1733368238142,-500.0,0.00024211,2]
[344356425,1733368238152,-509.95964966,0.00024211,2]
[344356426,1733368238161,-503.87041839,0.00024211,2]
[344356428,1733368238171,-505.10157609,0.00024211,2]
[344356430,1733368238180,-500.0,0.00024211,2]
[344356432,1733368238191,-358.2,0.00024211,2]
[344356434,1733368238200,-500.0,0.00024211,2]
[344356436,1733368238209,-511.12463058,0.00024211,2]
[344356438,1733368238219,-502.60776789,0.00024211,2]
[344356440,1733368238228,-500.0,0.00024211,2]
[344356442,1733368238238,-500.0,0.00024211,2]
[344356444,1733368238247,-511.45562223,0.00024211,2]
[344356446,1733368238256,-500.0,0.00024211,2]
[344356448,1733368238265,-420.0,0.00024218,2]
[344356450,1733368238275,-500.0,0.00024433,2]
[344356452,1733368238286,-500.0,0.00024433,2]
[344356454,1733368238295,-500.0,0.00024433,2]
[344356456,1733368238305,-500.0,0.00024484,2]
[344356458,1733368238315,-500.0,0.00024484,2]
[344356460,1733368238325,-500.0,0.00024484,2]
[344356461,1733368238334,-500.0,0.00024484,2]
[344356463,1733368238344,-500.0,0.00024484,2]
[344356465,1733368238360,-297.96139312,0.00024484,2]
[344356467,1733368238369,-500.0,0.00024484,2]
[344356469,1733368238382,-500.0,0.00024484,2]
[344356471,1733368238392,-529.40311306,0.00024484,2]
[344356473,1733368238402,-500.0,0.00024485,2]
[344356475,1733368238412,-500.0,0.00024485,2]
[344356477,1733368238425,-500.0,0.00024485,2]
[344356479,1733368238435,-500.0,0.00024485,2]
[344356481,1733368238445,-500.0,0.00024485,2]
[344356483,1733368238455,-500.0,0.00024485,2]
[344356485,1733368238465,-544.41152319,0.00024485,2]
[344356487,1733368238474,-200.0,0.00024485,2]
[344356489,1733368238484,-500.0,0.00024485,2]
[344356491,1733368238494,-500.0,0.00024485,2]
[344356493,1733368238504,-500.0,0.00024485,2]
[344356495,1733368238514,-509.53294772,0.00024485,2]
[344356497,1733368238523,-540.19955495,0.00024485,2]
[344356499,1733368238535,-500.0,0.00024485,2]
[344356501,1733368238545,-500.0,0.00024485,2]
[344356503,1733368238554,-508.39828404,0.00024485,2]
[344356505,1733368238564,-526.47404861,0.00024485,2]
[344356507,1733368238573,-500.0,0.00024485,2]
[344356509,1733368238583,-528.79574351,0.00024485,2]
[344356511,1733368238592,-551.16463554,0.00024485,2]
[344356513,1733368238606,-500.0,0.00024485,2]
[344356515,1733368238616,-510.51346997,0.00024485,2]
[344356517,1733368238625,-500.0,0.00024485,2]
[344356519,1733368238635,-500.0,0.00024485,2]
[344356521,1733368238644,-500.0,0.00024485,2]
[344356522,1733368238653,-368.07719283,0.00024485,2]
[344356524,1733368238664,-500.0,0.00024485,2]
[344356526,1733368238674,-510.76908907,0.00024485,2]
[344356528,1733368238683,-500.0,0.00024485,2]
[344356530,1733368238694,-684.57,0.00024485,2]
[344356532,1733368238703,-505.63062656,0.00024485,2]
[344356534,1733368238712,-509.45422055,0.00024485,2]
[344356536,1733368238722,-500.0,0.00024485,2]
[344356538,1733368238732,-500.0,0.00024485,2]
[344356540,1733368238741,-500.0,0.00024485,2]
[344356542,1733368238751,-505.162404,0.00024485,2]
[344356544,1733368238760,-512.67482984,0.00024485,2]
[344356546,1733368238770,-500.0,0.00024485,2]
[344356548,1733368238779,-513.56307467,0.00024485,2]
[344356550,1733368238789,-506.63481356,0.00024485,2]
[344356552,1733368238798,-511.13748163,0.00024485,2]
[344356554,1733368238808,-503.87259009,0.00024485,2]
[344356556,1733368238818,-500.0,0.00024485,2]
[344356558,1733368238827,-500.0,0.00024485,2]
[344356560,1733368238836,-514.03490689,0.00024485,2]
[344356562,1733368238847,-502.20710472,0.00024485,2]
[344356563,1733368238859,-508.64291746,0.00024485,2]
[344356565,1733368238869,-500.0,0.00024485,2]
[344356567,1733368238879,-500.0,0.00024485,2]
[344356570,1733368238889,-506.1079928,0.00024485,2]
[344356571,1733368238900,-500.0,0.00024485,2]
[344356573,1733368238909,-500.0,0.00024485,2]
[344356575,1733368238919,-500.0,0.00024485,2]
[344356577,1733368238929,-513.14329621,0.00024485,2]
[344356579,1733368238939,-500.0,0.00024485,2]
[344356581,1733368238948,-426.30461566,0.00024485,2]
[344356583,1733368238958,-595.35206538,0.00024485,2]
[344356585,1733368238968,-502.04642342,0.00024521,2]
[344356587,1733368238977,-1000.0,0.00024521,2]
[344356589,1733368238987,-1008.34560833,0.00024521,2]
[344356591,1733368238996,-200.0,0.00024658,15]
[344356593,1733368239006,-946.3217386,0.00024681,2]
[344356595,1733368239016,-500.0,0.00024707,2]
[344356597,1733368239025,-500.0,0.00024707,2]
[344356599,1733368239035,-500.0,0.00024707,2]
[344356601,1733368239044,-161.682594,0.00024724,2]
[344356603,1733368239054,-500.0,0.00024758,2]
[344356605,1733368239064,-500.0,0.00024758,2]
[344356607,1733368239074,-500.0,0.00024758,2]
[344356609,1733368239084,-363.17,0.00024758,2]
[344356611,1733368239093,-623.51,0.00024758,2]
[344356613,1733368239107,-500.0,0.00024758,2]
[344356615,1733368239116,-500.0,0.00024758,2]
[344356617,1733368239126,-551.32746079,0.00024759,2]
[344356619,1733368239136,-537.7616359,0.00024759,2]
[344356621,1733368239145,-500.0,0.00024759,2]
[344356622,1733368239154,-503.76687915,0.00024759,2]
[344356624,1733368239164,-618.16053964,0.00024759,2]
[344356626,1733368239174,-500.0,0.00024759,2]
[344356628,1733368239183,-200.0,0.00024759,2]
[344356630,1733368239193,-397.70891567,0.00024759,2]
[344356632,1733368239202,-500.0,0.00024759,2]
[344356634,1733368239212,-500.0,0.00024759,2]
[344356636,1733368239222,-500.0,0.00024759,2]
[344356638,1733368239231,-500.0,0.00024759,2]
[344356640,1733368239241,-500.0,0.00024759,2]
[344356642,1733368239251,-506.38371857,0.00024759,2]
[344356644,1733368239260,-500.0,0.00024759,2]
[344356646,1733368239270,-500.0,0.00024759,2]
[344356648,1733368239280,-517.99030498,0.00024759,2]
[344356650,1733368239289,-500.0,0.00024759,2]
[344356652,1733368239298,-500.0,0.00024759,2]
[344356654,1733368239307,-684.57,0.00024759,2]
[344356656,1733368239317,-487.33114797,0.00024759,2]
[344356658,1733368239327,-500.0,0.00024759,2]
[344356660,1733368239336,-500.0,0.00024759,2]
[344356662,1733368239346,-500.0,0.00024759,2]
[344356664,1733368239358,-509.86801595,0.00024759,2]
[344356666,1733368239367,-509.87073055,0.00024759,2]
[344356668,1733368239376,-500.0,0.00024759,2]
[344356670,1733368239386,-205.64,0.00024759,2]
[344356672,1733368239397,-500.0,0.00024759,2]
[344356674,1733368239406,-520.18953589,0.00024759,2]
[344356676,1733368239417,-251.28772628,0.00024759,2]
[344356677,1733368239427,-500.0,0.00024759,2]
[344356679,1733368239439,-464.36,0.00024981,2]
[344356681,1733368239448,-500.0,0.00024981,2]
[344356683,1733368239458,-401.10182343,0.00024981,2]
[344356685,1733368239468,-500.0,0.00024999,2]
[344356687,1733368239478,-500.0,0.00024999,2]
[344356690,1733368239491,-500.0,0.00024999,2]
[344356692,1733368239500,-500.0,0.00024999,2]
[344356694,1733368239510,-6188.0,0.00025,2]
[344356696,1733368239520,-500.0,0.00025032,2]
[344356698,1733368239530,-241.07,0.00025032,2]
[344356699,1733368239539,-500.0,0.00025032,2]
[344356702,1733368239549,-500.0,0.00025032,2]
[344356704,1733368239560,-500.0,0.00025032,2]
[344356706,1733368239570,-500.0,0.00025033,2]
[344356707,1733368239580,-500.0,0.00025033,2]
[344356710,1733368239590,-200.0,0.00025033,2]
[344356711,1733368239603,-500.0,0.00025033,2]
[344356713,1733368239612,-512.25980826,0.00025033,2]
[344356715,1733368239622,-509.17961013,0.00025033,2]
[344356717,1733368239631,-500.0,0.00025033,2]
[344356719,1733368239641,-278.09937941,0.00025033,2]
[344356721,1733368239650,-379.48,0.00025033,2]
[344356723,1733368239660,-508.76634144,0.00025033,2]
[344356725,1733368239671,-508.35253574,0.00025033,2]
[344356727,1733368239681,-500.0,0.00025033,2]
[344356729,1733368239691,-684.57,0.00025033,2]
[344356731,1733368239701,-500.0,0.00025033,2]
[344356733,1733368239711,-500.0,0.00025033,2]
[344356735,1733368239720,-500.0,0.00025033,2]
[344356737,1733368239731,-645.98,0.00025033,2]
[344356739,1733368239741,-507.94904164,0.00025033,2]
[344356742,1733368239751,-631.27505454,0.00025033,2]
[344356745,1733368239760,-180.817778,0.00025208,2]
[344356749,1733368239770,-170.69345027,0.00025252,9]
[344356753,1733368239779,-188.911,0.00025252,9]
[344356755,1733368239790,-500.0,0.00025255,2]
[344356758,1733368239800,-311.02,0.00025294,3]
[344356761,1733368239810,-500.0,0.00025306,2]
[344356763,1733368239820,-190.66803635,0.00025306,2]
[344356765,1733368239829,-500.0,0.00025306,2]
[344356767,1733368239839,-500.0,0.00025306,2]
[344356769,1733368239851,-500.0,0.00025307,2]
[344356771,1733368239860,-500.0,0.00025307,2]
[344356773,1733368239871,-200.0,0.00025307,2]
[344356775,1733368239881,-563.52674613,0.00025307,2]
[344356777,1733368239891,-622.30085149,0.00025307,2]
[344356779,1733368239900,-500.0,0.00025307,2]
[344356781,1733368239914,-684.57,0.00025307,2]
[344356783,1733368239924,-500.0,0.00025307,2]
[344356785,1733368239934,-500.0,0.00025307,2]
[344356795,1733368240028,-500.0,0.00025307,2]
[344356797,1733368240039,-500.0,0.00025484,2]
[344356799,1733368240049,-501.16752637,0.00025484,2]
[344356801,1733368240059,-1632.0487961,0.00025522,2]
[344356803,1733368240069,-500.0,0.00025529,2]
[344356804,1733368240079,-500.0,0.0002558,2]
[344356806,1733368240089,-500.0,0.0002558,2]
[344356808,1733368240104,-500.0,0.0002558,2]
[344356810,1733368240115,-631.12,0.00025581,2]
[344356812,1733368240124,-517.33196031,0.00025581,2]
[344356814,1733368240134,-203.74964906,0.00025581,2]
[344356816,1733368240143,-500.0,0.00025581,2]
[344356818,1733368240152,-684.57,0.00025581,2]
[344356820,1733368240162,-500.0,0.00025581,2]
[344356822,1733368240172,-500.0,0.00025581,2]
[344356824,1733368240181,-180.0,0.00025775,2]
[344356826,1733368240191,-500.0,0.00025803,2]
[344356828,1733368240201,-500.0,0.00025825,2]
[344356830,1733368240211,-500.0,0.00025854,2]
[344356832,1733368240221,-213.71,0.00025854,2]
[344356834,1733368240231,-500.0,0.00025854,2]
[344356835,1733368240240,-588.59655369,0.00025855,2]
[344356837,1733368240249,-518.83199843,0.00025855,2]
[344356846,1733368240327,-165.73800157,0.00025855,2]
[344356848,1733368240337,-500.0,0.00025855,2]
[344356850,1733368240346,-500.0,0.00025855,2]
[344356852,1733368240361,-161.682594,0.00025886,2]
[344356854,1733368240371,-587.0,0.00025997,2]
[344356856,1733368240381,-211.67430054,0.00026016,8]
[344356858,1733368240392,-430.58024167,0.00026032,2]
[344356860,1733368240407,-74.65872817,0.00026032,2]
[344356862,1733368240417,-500.0,0.00026077,2]
[344356864,1733368240426,-500.0,0.00026114,2]
[344356866,1733368240437,-500.0,0.00026114,2]
[344356868,1733368240448,-280.21516685,0.00026114,2]
[344356870,1733368240457,-521.04909417,0.00026114,2]
[344356872,1733368240467,-500.0,0.00026114,2]
[344356873,1733368240478,-500.0,0.00026114,2]
[344356874,1733368240488,-500.0,0.00026114,2]
[344356875,1733368240497,-500.0,0.00026114,2]
[344356876,1733368240508,-500.0,0.00026114,2]
[344356877,1733368240518,-500.0,0.00026114,2]
[344356878,1733368240528,-500.0,0.00026114,2]
[344356879,1733368240537,-500.0,0.00026114,2]
[344356880,1733368240547,-500.0,0.00026115,2]
[344356881,1733368240557,-500.0,0.00026115,2]
[344356882,1733368240567,-500.0,0.00026115,2]
[344356883,1733368240576,-500.0,0.00026115,2]
[344356884,1733368240586,-508.85490809,0.00026116,2]
[344356885,1733368240596,-500.0,0.00026116,2]
[344356886,1733368240610,-199.08758615,0.00026116,2]
[344356891,1733368241058,-500.0,0.00022788,2]
[344356892,1733368241068,-518.08895,0.00022788,2]
[344356893,1733368241080,-44.98798232,0.00022788,2]
[344356894,1733368241089,-500.0,0.00022788,2]
[344356895,1733368241105,-563.07693232,0.00022788,2]
[344356896,1733368241117,-500.0,0.00022788,2]
[344356897,1733368241127,-563.07693232,0.00022788,2]
[344356898,1733368241137,-563.07693232,0.00022788,2]
[344356899,1733368241147,-500.0,0.00022788,2]
[344356900,1733368241157,-563.07693232,0.00022788,2]
[344356901,1733368241167,-500.0,0.00022788,2]
[344356902,1733368241177,-563.07693232,0.00022788,2]
[344356903,1733368241187,-500.0,0.00022788,2]
[344356904,1733368241198,-563.07693232,0.00022788,2]
[344356905,1733368241207,-500.0,0.00022788,2]
[344356906,1733368241218,-500.0,0.00022788,2]
[344356907,1733368241228,-563.07693232,0.00022788,2]
[344356908,1733368241238,-500.0,0.00022788,2]
[344356909,1733368241248,-563.07693232,0.00022788,2]
[344356910,1733368241258,-500.0,0.00022788,2]
[344356911,1733368241267,-563.07693232,0.00022788,2]
[344356912,1733368241277,-563.07693232,0.00022788,2]
[344356913,1733368241289,-500.0,0.00022788,2]
[344356914,1733368241299,-563.07693232,0.00022788,2]
[344356915,1733368241308,-500.0,0.00022788,2]
[344356916,1733368241318,-563.07693232,0.00022788,2]
[344356917,1733368241327,-500.0,0.00022788,2]
[344356918,1733368241337,-563.07693232,0.00022788,2]
[344356919,1733368241346,-500.0,0.00022788,2]
[344356920,1733368241362,-563.07693232,0.00022788,2]
[344356921,1733368241371,-500.0,0.00022788,2]
[344356922,1733368241381,-563.07693232,0.00022788,2]
[344356923,1733368241391,-563.07693232,0.00022788,2]
[344356924,1733368241405,-500.0,0.00022788,2]
[344356925,1733368241415,-500.0,0.00022788,2]
[344356926,1733368241424,-500.0,0.00022788,2]
[344356927,1733368241434,-563.07693232,0.00022788,2]
[344356928,1733368241445,-500.0,0.00022788,2]
[344356929,1733368241455,-563.07693232,0.00022788,2]
[344356930,1733368241465,-563.07693232,0.00022788,2]
[344356931,1733368241475,-500.0,0.00022788,2]
[344356932,1733368241485,-563.07693232,0.00022788,2]
[344356933,1733368241496,-500.0,0.00022788,2]
[344356934,1733368241505,-563.07693232,0.00022788,2]
[344356935,1733368241515,-500.0,0.00022788,2]
[344356936,1733368241525,-500.0,0.00022788,2]
[344356937,1733368241535,-563.07693232,0.00022788,2]
[344356938,1733368241545,-500.0,0.00022788,2]
[344356939,1733368241555,-563.07693232,0.00022788,2]
[344356940,1733368241565,-563.07693232,0.00022788,2]
[344356941,1733368241575,-500.0,0.00022788,2]
[344356942,1733368241585,-563.07693232,0.00022788,2]
[344356943,1733368241595,-500.0,0.00022788,2]
[344356944,1733368241610,-563.07693232,0.00022788,2]
[344356945,1733368241620,-563.07693232,0.00022788,2]
[344356946,1733368241630,-563.07693232,0.00022788,2]
[344356947,1733368241640,-500.0,0.00022788,2]
[344356948,1733368241650,-563.07693232,0.00022788,2]
[344356949,1733368241660,-500.0,0.00022788,2]
[344356950,1733368241670,-500.0,0.00022788,2]
[344356951,1733368241680,-563.07693232,0.00022788,2]
[344356952,1733368241690,-563.07693232,0.00022788,2]
[344356953,1733368241700,-390.39695608,0.00022788,2]
[344356954,1733368241709,-563.07693232,0.00022788,2]
[344356955,1733368241719,-563.07693232,0.00022788,2]
[344356956,1733368241729,-563.07693232,0.00022788,2]
[344356957,1733368241738,-563.07693232,0.00022788,2]
[344356958,1733368241748,-563.07693232,0.00022788,2]
[344356959,1733368241856,-563.07693232,0.00022788,2]
[344356960,1733368241867,-563.07693232,0.00022788,2]
[344356961,1733368241876,-563.07693232,0.00022788,2]
[344356962,1733368241886,-563.07693232,0.00022788,2]
[344356963,1733368241896,-563.07693232,0.00022788,2]
[344356964,1733368241907,-563.07693232,0.00022788,2]
[344356965,1733368241917,-563.07693232,0.00022788,2]
[344356966,1733368241927,-501.99943515,0.00023937,2]
[344356967,1733368241937,-500.0,0.00023937,2]
[344356968,1733368241948,-501.66660621,0.00023937,2]
[344356969,1733368241958,-500.0,0.00023937,2]
[344356970,1733368241968,-501.13247711,0.00023937,2]
[344356971,1733368241977,-503.87310113,0.00023937,2]
[344356972,1733368241987,-508.10512909,0.00023937,2]
[344356973,1733368241997,-500.0,0.00024211,2]
[344356974,1733368242007,-571.0,0.00024485,2]
[344356975,1733368242017,-300.91241385,0.00026116,2]
[344356976,1733368242027,-500.0,0.00026116,2]
[344356977,1733368242037,-500.0,0.00026116,2]
[344356978,1733368242046,-512.244189,0.00026116,2]
[344356979,1733368242056,-547.74344791,0.00026116,2]
[344356980,1733368242065,-505.11737003,0.00026116,2]
[344356981,1733368242075,-500.0,0.00026116,2]
[344356982,1733368242084,-505.96299276,0.00026116,2]
[344356983,1733368242094,-500.0,0.00026116,2]
[344356984,1733368242105,-500.0,0.00026116,2]
[344356985,1733368242115,-505.94584447,0.00026116,2]
[344356986,1733368242125,-501.36204947,0.00026116,2]
[344356987,1733368242134,-500.0,0.00026116,2]
[344356988,1733368242143,-500.0,0.00026116,2]
[344356989,1733368242153,-500.0,0.00026116,2]
[344356990,1733368242163,-500.0,0.00026116,2]
[344356991,1733368242172,-500.0,0.00026116,2]
[344356992,1733368242182,-500.0,0.00026116,2]
[344356993,1733368242191,-500.0,0.00026116,2]